[Event "Budapest GM ONE WEEK Feb 2024"]
[Site "Budapest"]
[Date "2024.02.27"]
[Round "3"]
[White "Bodi, Tibor"]
[Black "Tomic, Aleksandar"]
[Result "1/2-1/2"]
[ECO "A07"]
[WhiteElo "2294"]
[BlackElo "2398"]
[Annotator "TA"]
[PlyCount "157"]
[EventDate "2024.02.25"]
[EventType "tourn"]
[EventCountry "HUN"]
[SourceTitle "playchess.com"]
[Source "ChessBase"]
[SourceQuality "1"]
[TimeControl "5400+30"]

{[%evp 9,157,14,14,12,11,11,18,18,14,24,40,36,44,15,32,-22,-11,-24,-12,-22,-16,-69,-11,-16,2,0,0,0,8,0,5,11,25,25,50,66,64,-12,0,0,10,18,23,10,107,30,28,36,43,28,50,5,116,121,211,75,74,85,283,282,278,260,262,55,68,39,70,68,80,80,80,80,80,80,80,80,80,80,80,80,80,80,80,80,80,80,80,80,80,80,80,80,80,80,80,80,80,80,80,80,80,80,80,80,80,80,80,80,80,80,80,80,80,77,80,80,81,80,80,80,81,80,80,80,80,80,80,80,80,0,0,0,80,80,80,62,55,0,0,0,0,0,0,0,0,0,0,0,0,0]} 1. Nf3 {[%emt 0:00:01]} d5 {[%emt 0:05:19]} 2. g3 {[%emt 0:00:48]} c6 {[%emt 0:02:20]} 3. Bg2 {[%emt 0:00:18]} Bg4 {[%emt 0:00:33]} 4. O-O {[%emt 0:00:06]} Nd7 {[%emt 0:00:37]} 5. d4 {[%emt 0:00:23]} e6 {[%emt 0:01:12]} 6. h3 {[%emt 0:00:13]} Bh5 {[%emt 0:00:54] [#]} 7. c4 $1 {[%emt 0:00:44]} Ngf6 {[%emt 0:01:41]} (7... Be7 8. a4) 8. cxd5 {[%emt 0:00:21]} cxd5 {[%emt 0:02:48]} 9. Nc3 {[%emt 0:00:47]} Bd6 {[%emt 0:02:40]} 10. Qb3 {[%emt 0:05:46]} Qb6 {[%emt 0:01:07]} 11. Qxb6 {[%emt 0:00:30]} Nxb6 {[%emt 0:02:17]} 12. Bg5 {[%emt 0:08:33]} (12. Ne5 $14) 12... Ne4 $11 {[%emt 0:06:45]} 13. Nxe4 {[%emt 0:01:17]} dxe4 {[%emt 0:00:11]} 14. Nd2 {[%emt 0:00:55]} f5 {[%emt 0:01:26]} 15. e3 {[%emt 0:10:18]} (15. g4 $1 $11 Bf7 16. f3) 15... Rc8 {[%emt 0:19:49]} (15... h6 $15 16. Bf4 Bxf4 17. gxf4 g5 18. fxg5 hxg5) 16. Rfc1 {[%emt 0:01:13]} Kf7 {[%emt 0:05:47] [#]} 17. g4 $1 {[%emt 0:06:51]} h6 {[%emt 0:10:29]} (17... Bg6 18. Bh4) 18. Bh4 {[%emt 0:01:01]} Bg6 {[%emt 0:01:11]} 19. f3 {[%emt 0:03:07]} Bb4 {[%emt 0:03:17]} 20. Nf1 {[%emt 0:10:37]} Nc4 {[%emt 0:10:23]} 21. a3 {[%emt 0:03:30]} Ba5 {[%emt 0:04:04]} 22. fxe4 {[%emt 0:01:49]} fxg4 {[%emt 0:02:38]} (22... Nxb2 $2 23. exf5 Bh7 24. Rcb1 $18 (24. Bxb7 Rxc1 25. Rxc1 Re8 $18)) (22... fxe4 23. b3 Nd6 24. b4 $16) 23. b3 {[%emt 0:05:42]} (23. b4 $14 Bb6 24. hxg4) 23... Nd6 {[%emt 0:05:29]} 24. b4 {[%emt 0:00:25]} Bb6 {[%emt 0:01:03]} 25. Nd2 {[%emt 0:10:29]} gxh3 {[%emt 0:01:43]} 26. Bxh3 {[%emt 0:01:10][%cal Bg2h3,Bh3e6,Be6d5][%mdl 32]} Rhe8 {[%emt 0:02:38]} (26... Bxe4 27. Bg3 (27. Nxe4 Nxe4 28. a4 g5 $15) 27... Rxc1+ 28. Rxc1 $18) (26... Nxe4 $6 27. Nf3 Rxc1+ (27... Bc7 $2 28. Rxc7+ Rxc7 29. Ne5+ Ke8 30. Nxg6 $18) 28. Rxc1 $16) (26... Rxc1+ $11 27. Rxc1 Rc8 (27... Nxe4 28. Nxe4 Bxe4 29. Rf1+ Ke8 30. Bxe6 $11) (27... Bxe4 28. Bg3 $16) 28. Rxc8 (28. Rf1+ Ke8 $11) 28... Nxc8) 27. Rxc8 {[%emt 0:08:05]} (27. e5 $16 Rxc1+ 28. Rxc1) 27... Rxc8 {[%emt 0:00:45]} 28. Rf1+ {[%emt 0:00:49]} Ke8 {[%emt 0:01:09][%cal Oc8c2]} 29. Bxe6 {[%emt 0:00:27]} Rc3 {[%emt 0:01:26]} 30. Bg3 {[%emt 0:12:03]} Ke7 {[%emt 0:02:00] [#]} (30... Nxe4 $2 31. Nxe4 Rxe3 (31... Bxe4 $2 32. Bd6 $18) 32. Bd6 $18) (30... Nb5 $11 {keeps the balance.}) 31. Bd5 $1 $16 {[%emt 0:00:18]} Nb5 {[%emt 0:00:49]} (31... Bd8 $16 {was necessary.} 32. a4 Bc7 (32... Rxe3 $2 33. Bxd6+ Kd7 34. e5 $18)) 32. Nc4 {[%emt 0:02:36]} (32. Bxb7 Bxd4 33. Bh4+ Bf6 $11) (32. a4 $18 {is more deadly.} Na3 33. Be5 (33. Bxb7 Bxd4 34. exd4 Rxg3+ 35. Kf2 Rd3 $16)) 32... Bxd4 {[%emt 0:00:41]} 33. a4 {[%emt 0:01:30] White has more active pieces.} Rxc4 $2 {[%emt 0:01:16]} 34. exd4 $18 {[%emt 0:01:22]} Rxd4 {[%emt 0:00:31]} 35. axb5 {[%emt 0:00:54]} Bxe4 {[%emt 0:00:30] [#]} 36. Bxe4 {[%emt 0:00:55]} (36. Rf7+ $1 $18 Ke8 37. Be6) 36... Rxe4 $16 {[%emt 0:00:07][%mdl 4096] Endgame. KRB-KR} 37. Rc1 {[%emt 0:00:33]} Rxb4 {[%emt 0:00:52]} 38. Rc7+ {[%emt 0:00:07]} Ke6 {[%emt 0:00:25]} 39. Rxb7 {[%emt 0:00:16][%cal Og3b8] Black must now prevent Bb8!} Kd5 {[%emt 0:00:12]} 40. Rxa7 {[%emt 0:02:35]} (40. Rxg7 Rxb5 41. Rxa7 h5 $14) 40... Rxb5 {[%emt 0:00:37]} 41. Rxg7 {[%emt 0:00:05]} Ke4 {[%emt 0:00:33]} 42. Kg2 {[%emt 0:00:07]} Rg5 {[%emt 0:00:30]} 43. Rf7 {[%emt 0:00:06]} Rg6 {[%emt 0:00:43]} 44. Kh3 {[%emt 0:00:05]} Kd5 {[%emt 0:00:21]} 45. Ra7 {[%emt 0:00:12]} Ke6 {[%emt 0:00:38]} 46. Ra5 {[%emt 0:00:10]} Kf7 {[%emt 0:00:26]} 47. Bf4 {[%emt 0:00:11]} Rc6 {[%emt 0:00:23]} 48. Kg4 {[%emt 0:00:08]} Kg6 {[%emt 0:00:34]} 49. Ra7 {[%emt 0:00:20]} h5+ {[%emt 0:00:21]} 50. Kh3 {[%emt 0:00:17]} Rc4 {[%emt 0:00:21]} 51. Bg3 {[%emt 0:00:13]} Rc3 {[%emt 0:00:27]} 52. Ra4 {[%emt 0:00:22]} Rc6 {[%emt 0:00:55]} 53. Kh4 {[%emt 0:00:20]} Rb6 {[%emt 0:00:27]} 54. Bf4 {[%emt 0:00:18]} Rf6 {[%emt 0:00:12]} 55. Kg3 {[%emt 0:00:15]} Rf5 {[%emt 0:00:29]} 56. Kf3 {[%emt 0:00:06]} Rf6 {[%emt 0:00:25]} 57. Ke4 {[%emt 0:00:05]} Rb6 {[%emt 0:00:18]} 58. Be5 {[%emt 0:00:09]} Rb1 {[%emt 0:00:37]} 59. Ra6+ {[%emt 0:00:19]} Kg5 {[%emt 0:00:11]} 60. Bf4+ {[%emt 0:00:05]} Kh4 {[%emt 0:01:12]} 61. Rg6 {[%emt 0:00:20]} Rb3 {[%emt 0:00:40]} 62. Rg1 {[%emt 0:00:51]} Ra3 {[%emt 0:00:33]} 63. Be3 {[%emt 0:00:00] Threatening mate with Kf3.} Kh3 {[%emt 0:00:31]} 64. Kf3 {[%emt 0:00:12]} Kh2 {[%emt 0:00:13][%cal Oa3e3] Prevents Rh1+.} 65. Rg2+ {[%emt 0:00:34]} Kh3 {[%emt 0:00:33][%cal Oa3e3] ( -> ...Rxe3+!)} 66. Rb2 {[%emt 0:01:14]} Rc3 {[%emt 0:00:30]} 67. Rb5 {[%emt 0:00:39]} h4 {[%emt 0:00:18]} 68. Rb4 {[%emt 0:00:07]} Ra3 {[%emt 0:00:15]} 69. Kf2 {[%emt 0:00:43]} ({White should play} 69. Rb1 $16 {[%cal Rb1h1]} Ra2 70. Rh1+ Rh2 71. Rd1) 69... Ra2+ $1 $11 {[%emt 0:00:15]} 70. Kf3 {[%emt 0:00:14]} ({Better is} 70. Ke1 $11) 70... Ra3 $16 {[%emt 0:00:04]} 71. Rb2 {[%emt 0:00:39]} Rc3 {[%emt 0:00:08]} 72. Ke2 {[%emt 0:00:15]} Kg2 {[%emt 0:00:44]} 73. Rb1 {[%emt 0:00:47]} (73. Ke1+ $14 Kf3 74. Bd2) 73... Rc2+ $11 {[%emt 0:00:31] The position is equal.} 74. Kd3 {[%emt 0:00:09]} Ra2 {[%emt 0:00:15]} (74... h3 {is interesting.} 75. Kxc2 h2 76. Bd4 h1=Q) 75. Rg1+ {[%emt 0:00:15]} Kf3 {[%emt 0:00:08]} 76. Rf1+ {[%emt 0:00:40]} Kg2 {[%emt 0:00:09]} 77. Rf7 {[%emt 0:00:33]} h3 {[%emt 0:00:47]} 78. Rg7+ {[%emt 0:00:21]} Kf3 {[%emt 0:00:13]} 79. Rf7+ {[%emt 0:00:11] Blacks defense is rewarded with a draw.   Weighted Error Value: White=0.18 (very precise) /Black=0.21 (precise) .  Loses game:     	---       	Black=1      Missed win:     	White=1     	---        Mistake:       	White=8     	Black=4      Inaccurate:     	White=3     	Black=1      OK:         	White=36    	Black=19     Best:        	White=3     	Black=6      Strong:       	White=1     	Black=1      Brilliant:      	White=1     	---} 1/2-1/2

[Event "Budapest GM ONE WEEK Feb 2024"]
[Site "Budapest"]
[Date "2024.02.28"]
[Round "4.1"]
[White "Grover, Sahaj"]
[Black "Pasti, Aron"]
[Result "1-0"]
[ECO "D35"]
[WhiteElo "2503"]
[BlackElo "2389"]
[Annotator "TA"]
[PlyCount "91"]
[EventDate "2024.02.25"]
[EventType "tourn"]
[EventCountry "HUN"]
[SourceTitle "playchess.com"]
[Source "ChessBase"]
[SourceQuality "1"]
[TimeControl "5400+30"]

{[%evp 27,91,22,27,19,36,29,52,27,119,102,129,124,122,11,18,12,8,10,181,174,199,108,114,97,406,403,601,599,662,562,518,494,556,536,481,454,649,459,735,746,660,673,684,615,560,553,523,525,674,702,706,706,641,602,646,656,916,847,870,848,990,951,905,696,730,722]} 1. d4 {[%emt 0:14:34]} d5 {[%emt 0:00:07]} 2. c4 {[%emt 0:00:10]} e6 {[%emt 0:00:04]} 3. Nc3 {[%emt 0:00:03]} Nf6 {[%emt 0:00:06]} 4. cxd5 {[%emt 0:00:04]} exd5 {[%emt 0:00:06]} 5. Bg5 {[%emt 0:00:04]} Be7 {[%emt 0:00:07]} 6. e3 {[%emt 0:00:05]} O-O {[%emt 0:00:07]} 7. Bd3 {[%emt 0:00:02]} Nbd7 {[%emt 0:00:25][%cal Bb8d7,Bd7f8,Bf8g6][%mdl 32]} 8. Qc2 {[%emt 0:01:52]} c6 {[%emt 0:00:06]} 9. h3 {[%emt 0:01:47]} Re8 {[%emt 0:00:58]} 10. Nf3 {[%emt 0:00:11]} Nf8 {[%emt 0:07:59]} 11. Bf4 {[%emt 0:00:05]} Ng6 {[%emt 0:05:31]} 12. Bh2 {[%emt 0:00:07]} Bd6 {[%emt 0:02:17]} 13. Bxd6 {[%emt 0:00:06]} Qxd6 {[%emt 0:00:01]} 14. O-O-O {[%emt 0:00:09]} b5 {[%emt 0:11:15]} 15. Kb1 {[%emt 0:00:23]} a6 {[%emt 0:03:26]} 16. Rc1 {[%emt 0:12:21]} Bb7 {[%emt 0:09:34]} 17. e4 {[%emt 0:14:01][%cal Be3e4,Be4e5][%mdl 32] White is slightly better.} Qd8 {[%emt 0:04:44]} (17... Nxe4 $11 {keeps the balance.} 18. Nxe4 dxe4 19. Bxe4 Rad8) 18. e5 $16 {[%emt 0:09:16]} Nd7 {[%emt 0:00:09]} 19. h4 $1 {[%emt 0:18:40][%cal Bh3h4,Bh4h5,Bh5g6][%mdl 32]} c5 {[%emt 0:03:57] [#]} 20. Bxg6 {[%emt 0:00:05]} (20. Ng5 $1 $16) 20... fxg6 $11 {[%emt 0:09:17]} 21. h5 {[%emt 0:00:06]} cxd4 {[%emt 0:08:37]} 22. hxg6 $1 {[%emt 0:02:08]} h6 {[%emt 0:01:51] [#]} (22... dxc3 $6 23. Rxh7 Nf8 (23... Nxe5 $2 24. Rch1 $18) 24. Qf5 c2+ (24... Nxh7 25. Qf7+ Kh8 26. Rh1) 25. Rxc2 Nxh7 26. gxh7+ Kh8 27. Ng5 $16) (22... Nxe5 $11 23. gxh7+ (23. Nxd4 Nxg6 24. Qf5 Qb6 $17) 23... Kh8 24. Nxe5 (24. Nxd4 Qf6 $11) 24... Rxe5) 23. Qf5 $1 $18 {[%emt 0:02:15]} Qe7 {[%emt 0:06:57] Wards off Qf7+} ({And not} 23... dxc3 24. Qf7+ Kh8 25. Rxh6+ gxh6 26. Qh7#) (23... Re7 24. Ne2) 24. Ne2 {[%emt 0:00:17][%cal Oc1c7] Threatens to win with Rc7!} ({Inferior is} 24. Nxd4 Rf8 25. Qe6+ Qxe6 26. Nxe6 Rxf2 $11) 24... Rf8 {[%emt 0:04:49]} 25. Qh5 {[%emt 0:00:09][%cal Oc1c7] aiming for Rc7! The board is on fire. White is much more active.} Rxf3 $2 {[%emt 0:07:21][%mdl 8192]} 26. gxf3 {[%emt 0:01:01][%cal Oc1c7,Bg2f3,Bf3f4,Bf4f5,Bf5e6][%mdl 32] Rc7! is the strong threat.} ({Not} 26. Qxf3 Nxe5 27. Qf4 d3 $16) 26... d3 {[%emt 0:01:42]} (26... Nxe5 $142 27. Nxd4 Nd3) 27. Nd4 {[%emt 0:00:10] White is clearly winning.} Qxe5 {[%emt 0:00:01]} 28. Qxe5 {[%emt 0:00:29]} Nxe5 {[%emt 0:00:02]} 29. Rc7 {[%emt 0:00:08]} Bc8 {[%emt 0:00:13] Repels Ne6} 30. f4 {[%emt 0:02:21]} Nc4 {[%emt 0:01:22]} 31. f5 {[%emt 0:01:19] Strongly threatening Nc6.} Nd6 {[%emt 0:00:55]} (31... d2 $142 32. Kc2 Rb8) 32. Rh5 {[%emt 0:02:44]} Ne4 {[%emt 0:01:46]} (32... Rb8 $142 33. Kc1 d2+ 34. Kxd2 Ne8) 33. Ne6 {[%emt 0:01:07]} Bxe6 {[%emt 0:00:45]} 34. fxe6 {[%emt 0:00:05][%mdl 4096] Endgame. White threatens e7 and mate. KRR-KRN} Nf6 {[%emt 0:00:06]} 35. Rh3 {[%emt 0:00:10][%cal Oe6e7] Hoping for e7!} Re8 {[%emt 0:00:17]} 36. Rxd3 {[%emt 0:00:55]} Rxe6 {[%emt 0:00:46]} 37. Rc8+ {[%emt 0:00:36]} Ne8 {[%emt 0:00:02]} 38. Rxd5 {[%emt 0:00:38]} Kf8 {[%emt 0:00:02]} 39. Rf5+ {[%emt 0:01:55]} Ke7 {[%emt 0:00:02]} 40. Rf7+ {[%emt 0:00:06]} Kd6 {[%emt 0:00:04]} 41. f4 {[%emt 0:01:00][%cal Bf2f4,Bf4f5][%mdl 32]} h5 {[%emt 0:00:25][%cal Bh6h5,Bh5h4][%mdl 32]} 42. f5 {[%emt 0:00:05]} Re1+ {[%emt 0:00:07]} 43. Kc2 {[%emt 0:00:33]} h4 {[%emt 0:00:04]} 44. Rd8+ {[%emt 0:00:21]} Kc5 {[%emt 0:00:10] [#]} 45. f6 $1 {[%emt 0:01:17]} Nxf6 {[%emt 0:00:36] [#]} (45... gxf6 46. g7) 46. Rxf6 $1 {[%emt 0:00:11][%mdl 512] Weighted Error Value: White=0.30/Black=0.66.  Loses game:     	---       	Black=2      Mistake:       	White=1     	Black=4      OK:         	White=5     	Black=3      Best:        	White=2     	Black=3      Strong:       	White=3     	---} 1-0

[Event "Budapest GM ONE WEEK Feb 2024"]
[Site "Budapest"]
[Date "2024.02.28"]
[Round "4.2"]
[White "Gaal, Zsoka"]
[Black "Paschall, William"]
[Result "1-0"]
[ECO "E47"]
[WhiteElo "2341"]
[BlackElo "2331"]
[Annotator "TA"]
[PlyCount "105"]
[EventDate "2024.02.25"]
[EventType "tourn"]
[EventCountry "HUN"]
[SourceTitle "playchess.com"]
[Source "ChessBase"]
[SourceQuality "1"]
[TimeControl "5400+30"]

{[%evp 23,105,12,5,-8,-9,0,30,17,28,31,52,54,56,77,58,-31,60,16,83,81,87,35,98,87,89,98,150,161,183,0,27,0,317,298,325,284,335,318,343,329,326,342,345,339,366,358,368,369,360,356,438,441,521,591,552,624,545,597,639,638,586,422,656,670,830,825,743,686,810,631,1508,1458,825,1852,1747,1635,29973,29972,29968,29970,29982,29976,29983,29984]} 1. d4 {[%emt 0:00:10]} Nf6 {[%emt 0:04:41]} 2. c4 {[%emt 0:00:15]} e6 {[%emt 0:00:45]} 3. Nc3 {[%emt 0:00:08]} Bb4 {[%emt 0:00:31]} 4. e3 {[%emt 0:00:15]} O-O {[%emt 0:00:52]} 5. Bd3 {[%emt 0:00:10]} c5 {[%emt 0:02:40]} 6. Nf3 {[%emt 0:00:31]} d5 {[%emt 0:03:48]} 7. cxd5 {[%emt 0:00:47]} cxd4 {[%emt 0:02:19] E53: Nimzo-Indian: Rubinstein: Main Line (4...0-0 5 Nf3 d5 6 Bd3 c5 7 0-0).} 8. exd4 {[%emt 0:01:08]} Nxd5 {[%emt 0:05:01]} 9. O-O {[%emt 0:02:03]} Nc6 {[%emt 0:01:30]} 10. Bc2 {[%emt 0:05:10] 10.Qc2 injects fresh life into this line.} Be7 {[%emt 0:15:25]} 11. Qd3 {[%emt 0:05:23]} g6 {[%emt 0:02:48]} 12. a3 {[%emt 0:06:26]} Bf6 {[%emt 0:02:55]} 13. Ne4 $146 {[%emt 0:02:03]} ({Predecessor:} 13. Bh6 Bg7 14. Bxg7 Kxg7 15. Bb3 Nce7 16. Nxd5 Nxd5 17. Qe4 Nf6 18. Qe5 Bd7 19. d5 exd5 20. Bxd5 {½-½ Grischuk,A (2777)-Nakamura,H (2736) Saint Louis Blitz 2020 (14)}) 13... Bg7 {[%emt 0:01:11]} 14. h4 {[%emt 0:02:45]} b6 {[%emt 0:09:16]} 15. h5 {[%emt 0:04:23]} a5 {[%emt 0:00:49]} 16. Re1 {[%emt 0:20:36]} Ba6 {[%emt 0:02:18]} 17. Qd1 $1 {[%emt 0:00:28]} Ra7 {[%emt 0:02:43]} 18. Bg5 {[%emt 0:03:59]} f6 {[%emt 0:04:29]} 19. hxg6 {[%emt 0:06:46]} ({White should play} 19. Bd2 $14) 19... hxg6 {[%emt 0:04:19]} (19... fxg5 $15 20. Nexg5 Nf4 21. gxh7+ Kh8) 20. Bh4 {[%emt 0:03:11]} Nce7 {[%emt 0:04:59]} (20... g5 $1 $11) 21. Nc3 $1 $16 {[%emt 0:03:40]} Kf7 {[%emt 0:12:49]} 22. Nxd5 {[%emt 0:13:00]} ({Better is} 22. Bg3 $16) 22... exd5 {[%emt 0:00:38]} (22... Qxd5 $14 23. Rc1 Rc8) 23. Qd2 $16 {[%emt 0:00:16]} Bc8 {[%emt 0:02:08]} 24. Rac1 $1 {[%emt 0:02:57]} Rh8 {[%emt 0:01:22] [#]} (24... Kg8 $142) 25. Qf4 $1 $16 {[%emt 0:01:36]} Bf5 {[%emt 0:01:11] [#]} 26. g4 $2 {[%emt 0:02:32]} ({White must play} 26. Rxe7+ $1 $18 Qxe7 27. Bxf5 gxf5 28. Qxf5) 26... Bxc2 {[%emt 0:02:40]} (26... Rxh4 $5 27. Nxh4 Bxc2 (27... g5 $2 28. Rxe7+ Rxe7 29. Qxf5 $18) 28. Rxc2 g5 $11) 27. Bxf6 {[%emt 0:03:00]} Bxf6 $4 {[%emt 0:05:12][%mdl 8192]} (27... Be4 $1 $11 {and Black has nothing to worry.}) 28. Ng5+ $18 {[%emt 0:00:08]} ({Weaker is} 28. Rxc2 Qf8 $16 (28... Kg7 $2 29. Re6 $16)) 28... Kg8 {[%emt 0:00:53]} 29. Qxf6 {[%emt 0:00:33]} Qf8 {[%emt 0:00:55]} 30. Qe6+ {[%emt 0:01:52]} Kg7 {[%emt 0:00:19]} 31. Rxc2 {[%emt 0:01:03]} Qf6 {[%emt 0:02:03]} 32. Qe5 {[%emt 0:02:39]} Qxe5 {[%emt 0:00:42]} 33. Rxe5 {[%emt 0:00:07]} Rh4 {[%emt 0:01:26]} 34. f3 {[%emt 0:00:14]} Rd7 {[%emt 0:00:56]} 35. Kg2 {[%emt 0:00:54]} Rh8 {[%emt 0:00:27]} 36. Re6 {[%emt 0:00:40]} Rb8 {[%emt 0:00:45]} 37. Kg3 {[%emt 0:00:19]} a4 {[%emt 0:00:12]} 38. Rh2 {[%emt 0:01:04]} Rh8 {[%emt 0:00:53]} 39. Rxh8 {[%emt 0:00:16]} Kxh8 {[%emt 0:00:03]} 40. Rxb6 {[%emt 0:00:09]} Kg7 {[%emt 0:00:20]} 41. Ne6+ {[%emt 0:00:53]} Kf7 {[%emt 0:00:17]} 42. Nc5 {[%emt 0:01:00]} Ra7 {[%emt 0:00:13]} (42... Rc7 $142 43. Nxa4 (43. Kf4 Nc6 $18) 43... Nc6) 43. Kf4 $18 {[%emt 0:00:38]} Nc8 {[%emt 0:00:28]} 44. Rb7+ {[%emt 0:00:52]} Rxb7 {[%emt 0:00:05]} 45. Nxb7 {[%emt 0:00:05]} Nb6 {[%emt 0:00:24]} 46. Nc5 {[%emt 0:02:24]} Kf6 {[%emt 0:00:41]} 47. g5+ {[%emt 0:00:17]} Ke7 {[%emt 0:00:08]} 48. Ke5 {[%emt 0:00:28]} Nc4+ {[%emt 0:00:03]} 49. Kxd5 {[%emt 0:00:07]} Nxb2 {[%emt 0:00:05]} 50. Kc6 {[%emt 0:01:31]} Nc4 {[%emt 0:00:19]} 51. d5 {[%emt 0:00:06]} Kd8 {[%emt 0:00:23]} 52. f4 {[%emt 0:00:37]} Ke7 {[%emt 0:00:55]} 53. Nb7 {[%emt 0:01:03]} 1-0

[Event "Budapest GM ONE WEEK Feb 2024"]
[Site "Budapest"]
[Date "2024.02.28"]
[Round "4.3"]
[White "Paszewski, Mateusz"]
[Black "Vetoshko, Volodymyr"]
[Result "1/2-1/2"]
[ECO "B90"]
[WhiteElo "2286"]
[BlackElo "2505"]
[Annotator "TA"]
[PlyCount "36"]
[EventDate "2024.02.25"]
[EventType "tourn"]
[EventCountry "HUN"]
[SourceTitle "playchess.com"]
[Source "ChessBase"]
[SourceQuality "1"]
[TimeControl "5400+30"]

{[%evp 11,36,18,8,13,14,8,14,16,9,0,25,23,6,0,-5,0,0,0,8,-12,-7,-34,-27,-62,42,42,59]} 1. e4 {[%emt 0:00:03]} c5 {[%emt 0:03:19]} 2. Nf3 {[%emt 0:00:06]} d6 {[%emt 0:00:02]} 3. d4 {[%emt 0:00:20]} cxd4 {[%emt 0:00:04]} 4. Nxd4 {[%emt 0:00:03]} Nf6 {[%emt 0:00:05]} 5. Nc3 {[%emt 0:00:03]} a6 {[%emt 0:00:04]} 6. Nb3 {[%emt 0:03:08]} Nc6 {[%emt 0:02:18][%cal Bb8c6,Bc6e5,Be5c4,Bc4e3][%mdl 32]} 7. Be3 {[%emt 0:00:54]} e6 {[%emt 0:02:50]} 8. g4 {[%emt 0:03:16]} h6 {[%emt 0:11:11]} 9. Qe2 {[%emt 0:24:03] The position is equal.} b5 {[%emt 0:11:46]} 10. O-O-O {[%emt 0:03:54]} Ne5 {[%emt 0:06:24][%cal Oc8d7]} 11. f4 {[%emt 0:20:01]} Nc4 {[%emt 0:00:53]} 12. Rg1 {[%emt 0:07:50][%cal Oe4e5]} Nxe3 {[%emt 0:11:34]} 13. Qxe3 {[%emt 0:00:01] aiming for e5.} Nd7 {[%emt 0:00:23]} 14. Bg2 {[%emt 0:07:57] [#] Strongly threatening e5.} Qb6 {[%emt 0:24:25]} 15. Qe2 {[%emt 0:07:04]} Bb7 {[%emt 0:02:54]} 16. Rge1 {[%emt 0:01:41][%cal Oc3d5]} Be7 {[%emt 0:06:43]} 17. Nd5 {[%emt 0:10:42]} Bxd5 {[%emt 0:01:05]} (17... exd5 $15 18. exd5 Qd8) 18. exd5 $14 {[%emt 0:00:10]} e5 {[%emt 0:00:03] Weighted Error Value: White=0.07 (flawless) /Black=0.13 (very precise) .  Mistake:       	---       	Black=1      Inaccurate:     	White=1     	---        OK:         	White=3     	Black=7      Best:        	---       	Black=1} 1/2-1/2

[Event "Budapest GM ONE WEEK Feb 2024"]
[Site "Budapest"]
[Date "2024.02.28"]
[Round "4.4"]
[White "Tomic, Aleksandar"]
[Black "Pap, Misa"]
[Result "1/2-1/2"]
[ECO "D10"]
[WhiteElo "2398"]
[BlackElo "2422"]
[Annotator "TA"]
[PlyCount "29"]
[EventDate "2024.02.25"]
[EventType "tourn"]
[EventCountry "HUN"]
[SourceTitle "playchess.com"]
[Source "ChessBase"]
[SourceQuality "1"]
[TimeControl "5400+30"]

{[%evp 22,29,18,13,26,8,14,8,22,0]} 1. d4 {[%emt 0:00:12]} d5 {[%emt 0:00:17]} 2. c4 {[%emt 0:00:17]} c6 {[%emt 0:00:24]} 3. cxd5 {[%emt 0:00:29]} cxd5 {[%emt 0:00:05]} 4. Nc3 {[%emt 0:00:08]} Nf6 {[%emt 0:00:37]} 5. Bf4 {[%emt 0:00:21]} a6 {[%emt 0:00:28]} 6. e3 {[%emt 0:00:17]} e6 {[%emt 0:00:50]} 7. Bd3 {[%emt 0:01:35]} Bd6 {[%emt 0:00:28]} 8. Bxd6 {[%emt 0:00:41]} Qxd6 {[%emt 0:00:05]} 9. Nf3 {[%emt 0:00:15]} Nc6 {[%emt 0:00:27]} 10. O-O {[%emt 0:00:35]} O-O {[%emt 0:00:37]} 11. Rc1 {[%emt 0:00:24]} Bd7 {[%emt 0:00:59]} 12. a3 {[%emt 0:02:23]} b5 {[%emt 0:04:55]} 13. Ne2 {[%emt 0:01:09]} b4 {[%emt 0:01:08]} 14. a4 {[%emt 0:03:54]} Rfc8 {[%emt 0:00:23]} 15. Ng3 {[%emt 0:02:55] An uneventful encounter.   Weighted Error Value: White=0.07 (flawless) /Black=0.11 (very precise) .  OK:         	White=1     	---} 1/2-1/2